fUST/lending_fUST_20250729
["ID","MTS","AMOUNT","RATE_DAILY","PERIOD"]
[375770001,1753737044822,-236.34,0.00023643,2]
[375770002,1753737044831,-157.56,0.00023643,2]
[375770003,1753737044841,-532.35384638,0.00023688,2]
[375770004,1753737044851,-671.10887059,0.00023735,2]
[375770005,1753737044860,-1000.0,0.000238,2]
[375770006,1753737044870,-208.0,0.00023802,2]
[375770007,1753737044880,-227.207,0.00023802,2]
[375770008,1753737044889,-150.0,0.00023802,2]
[375770009,1753737044899,-150.0,0.00023802,2]
[375770010,1753737044908,-150.0,0.00023802,2]
[375770011,1753737044918,-150.0,0.00023802,2]
[375770012,1753737044928,-150.821,0.00023802,2]
[375770013,1753737044939,-2159.0,0.00023802,2]
[375770014,1753737044951,-608.48,0.00023833,2]
[375770015,1753737044961,-813.17,0.00023834,2]
[375770016,1753737044970,-936.27,0.00023834,2]
[375770017,1753737044980,-660.1,0.00023834,2]
[375770018,1753737044990,-460.0,0.00023834,2]
[375770019,1753737044999,-1753.19,0.00023834,2]
[375770020,1753737045009,-1169.41,0.00023835,2]
[375770021,1753737045019,-621.1,0.00023835,2]
[375770022,1753737045028,-475.75,0.00023835,2]
[375770023,1753737045038,-3064.45,0.00023835,2]
[375770024,1753737045047,-604.37,0.00023835,2]
[375770025,1753737045057,-467.52,0.00023835,2]
[375770026,1753737045067,-460.0,0.00023835,2]
[375770027,1753737045077,-871.9,0.00023835,2]
[375770028,1753737045087,-644.26,0.00023835,2]
[375770029,1753737045096,-524.0,0.00023836,2]
[375770030,1753737045106,-575.7,0.00023901,6]
[375770031,1753737045115,-1244.0,0.00023907,2]
[375770032,1753737045125,-1244.0,0.00023926,2]
[375770033,1753737045134,-500.0,0.00023932,2]
[375770034,1753737045143,-1500.0,0.00023968,2]
[375770035,1753737045152,-1244.0,0.00023974,2]
[375770036,1753737045162,-160.0,0.00024,7]
[375770037,1753737045171,-160.0,0.00024,7]
[375770038,1753737045180,-216.06083566,0.00024,7]
[375770039,1753737045190,-160.0,0.00024,7]
[375770040,1753737045200,-160.0,0.00024,10]
[375770041,1753737045209,-231.34820253,0.00024,7]
[375770042,1753737045219,-160.0,0.00024,7]
[375770043,1753737045228,-840.90880427,0.00024,7]
[375770044,1753737045238,-526.58819812,0.00024,7]
[375770045,1753737045248,-1244.0,0.00024044,2]
[375770046,1753737045257,-500.0,0.00024068,2]
[375770047,1753737045267,-1244.0,0.00024085,2]
[375770048,1753737045276,-608.48,0.00024107,2]
[375770049,1753737045286,-813.17,0.00024108,2]
[375770050,1753737045296,-936.27,0.00024108,2]
[375770051,1753737045306,-660.1,0.00024108,2]
[375770052,1753737045316,-460.0,0.00024108,2]
[375770053,1753737045328,-1753.19,0.00024108,2]
[375770054,1753737045338,-1169.41,0.00024109,2]
[375770055,1753737045349,-621.1,0.00024109,2]
[375770057,1753737045358,-475.75,0.00024109,2]
[375770059,1753737045368,-3064.45,0.00024109,2]
[375770061,1753737045379,-604.37,0.00024109,2]
[375770062,1753737045389,-467.52,0.00024109,2]
[375770064,1753737045399,-460.0,0.00024109,2]
[375770066,1753737045409,-871.9,0.00024109,2]
[375770067,1753737045421,-644.26,0.00024109,2]
[375770068,1753737045430,-524.0,0.0002411,2]
[375770069,1753737045441,-1244.0,0.00024136,2]
[375770070,1753737045450,-1244.0,0.00024136,2]
[375770071,1753737045462,-157.56,0.00024191,2]
[375770072,1753737045476,-2200.0,0.00024264,2]
[375770073,1753737045486,-1244.0,0.00024286,2]
[375770074,1753737045495,-1000.0,0.000243,2]
[375770075,1753737045505,-264.19030624,0.000243,2]
[375770076,1753737045514,-575.7,0.00024345,6]
[375770077,1753737045524,-1244.0,0.00024363,2]
[375770078,1753737045533,-608.48,0.00024381,2]
[375770079,1753737045543,-813.17,0.00024382,2]
[375770080,1753737045552,-936.27,0.00024382,2]
[375770081,1753737045562,-660.1,0.00024382,2]
[375770082,1753737045571,-460.0,0.00024382,2]
[375770083,1753737045580,-1330.30078335,0.00024382,2]
[375770084,1753737045594,-422.88921665,0.00024382,2]
[375770085,1753737045605,-437.83233346,0.00024383,2]
[375770086,1753737045614,-1169.41,0.00024383,2]
[375770087,1753737045623,-621.1,0.00024383,2]
[375770088,1753737045632,-475.75,0.00024383,2]
[375770089,1753737045641,-3064.45,0.00024383,2]
[375770090,1753737045651,-604.37,0.00024383,2]
[375770091,1753737045660,-467.52,0.00024383,2]
[375770093,1753737045669,-282.33,0.00024383,2]
[375770094,1753737045679,-871.9,0.00024383,2]
[375770095,1753737045689,-644.26,0.00024383,2]
[375770096,1753737045699,-524.0,0.00024384,2]
[375770097,1753737045708,-770.37,0.000244,7]
[375770098,1753737045718,-239.75583712,0.00024401,2]
[375770100,1753737045735,-200.0,0.00021094,2]
[375770102,1753737045744,-366.17442988,0.00024401,2]
[375770104,1753737045754,-614.72557012,0.00024437,2]
[375770148,1753737074864,150.0,0.00021392,30]
[375770149,1753737098240,338.226715,0.00013699,2]
[375770171,1753737303204,180.0,0.00026027,120]
[375770177,1753737308682,176.51,0.00025124,120]
[375770178,1753737324330,264.0162897,0.00026368,120]
[375770185,1753737361458,400.0,0.00024658,120]
[375770194,1753737388175,150.5,0.00024647,120]
[375770196,1753737388638,218.31,0.00024637,120]
[375770210,1753737482471,163.0,0.00024,120]
[375770211,1753737483897,163.0,0.000251,120]
[375770216,1753737543366,26176.20048591,0.00018571,2]
[375770217,1753737556857,4668.04101216,0.000191,6]
[375770486,1753737641623,179.956135,0.00018574,120]
[375770496,1753737669454,747.98344574,0.00024658,120]
[375770507,1753737910694,24900.0,0.00018326,2]
[375770511,1753737991864,150.5,0.0002289,120]
[375770512,1753737992527,209.09,0.0002288,120]
[375770513,1753737993267,1000.0,0.00026027,120]
[375770515,1753738030140,-5346.11701379,0.00018571,2]
[375770518,1753738032140,-610.76758519,0.00018571,2]
[375770520,1753738052786,1529.36983382,0.00026376,120]
[375770521,1753738071170,200.69122012,0.000246,120]
[375770522,1753738072207,11768.02298388,0.00018,2]
[375770524,1753738095179,415.19422959,0.00010618,2]
[375770527,1753738097082,2916.78278653,0.000125,2]
[375770528,1753738097106,8467.29381601,0.000125,2]
[375770530,1753738105380,191.50520907,0.00026376,120]
[375770531,1753738108762,277.87727429,0.00014114,2]
[375770532,1753738110758,282.72696218,0.0001,2]
[375770533,1753738114498,270.48789839,0.00025,120]
[375770536,1753738117783,353.44973691,0.00025,120]
[375770538,1753738118887,166.36741532,0.00026376,120]
[375770539,1753738119396,2101.39666488,0.00026376,120]
[375770541,1753738120950,1592.62552889,0.00026376,120]
[375770542,1753738122071,294.86757447,0.00026376,120]
[375770543,1753738122100,1521.00976944,0.00026376,120]
[375770544,1753738122709,1524.23260489,0.00026,120]
[375770545,1753738122971,1490.01850234,0.0002,120]
[375770546,1753738123633,560.18406131,0.00025,120]
[375770547,1753738124321,896.83499999,0.00018,120]
[375770551,1753738127671,183.39371426,0.00026376,120]
[375770554,1753738128550,405.45341182,0.00026376,120]
[375770563,1753738148979,321.315379,0.00013699,2]
[375770564,1753738153353,2000.0,0.00023,30]
[375770565,1753738164140,-1132.8408,0.00018571,2]
[375770571,1753738232255,-80.44619511,0.00018571,2]
[375770572,1753738232268,-179.956135,0.00018574,2]
[375770573,1753738232279,-173.0,0.00019177,2]
[375770574,1753738232289,-150.96588928,0.0001934,2]
[375770575,1753738232299,-523.97705005,0.00019398,2]
[375770576,1753738232311,-426.18,0.00019398,2]
[375770578,1753738232324,-708.74387095,0.00019398,2]
[375770580,1753738232333,-182.86461466,0.0001943,2]
[375770582,1753738232344,-300.0,0.00019439,2]
[375770584,1753738232353,-300.0,0.00019439,2]
[375770585,1753738232363,-300.0,0.00019439,2]
[375770586,1753738232373,-1200.0,0.00019439,2]
[375770588,1753738232383,-460.0,0.0001944,2]
[375770590,1753738232393,-460.0,0.0001944,2]
[375770592,1753738232403,-460.0,0.0001944,2]
[375770594,1753738232412,-460.0,0.0001944,2]
[375770596,1753738232422,-375.5933072,0.0001944,2]
[375770599,1753738232432,-500.0,0.0001944,2]
[375770601,1753738232442,-500.0,0.0001944,2]
[375770603,1753738232452,-500.0,0.0001944,2]
[375770605,1753738232462,-500.0,0.0001944,2]
[375770606,1753738232471,-500.0,0.0001944,2]
[375770608,1753738232481,-500.0,0.0001944,2]
[375770609,1753738232491,-500.0,0.0001944,2]
[375770611,1753738232501,-500.0,0.0001944,2]
[375770612,1753738232518,-500.0,0.0001944,2]
[375770613,1753738232528,-500.0,0.0001944,2]
[375770614,1753738232538,-366.68148462,0.0001944,2]
[375770615,1753738232547,-500.0,0.0001944,2]
[375770616,1753738232558,-500.0,0.0001944,2]
[375770617,1753738232568,-500.0,0.0001944,2]
[375770618,1753738232577,-500.0,0.0001944,2]
[375770619,1753738232587,-500.0,0.0001944,2]
[375770620,1753738232597,-500.0,0.0001944,2]
[375770621,1753738232607,-500.0,0.0001944,2]
[375770622,1753738232617,-500.0,0.0001944,2]
[375770623,1753738232627,-500.0,0.0001944,2]
[375770624,1753738232636,-500.0,0.0001944,2]
[375770625,1753738232646,-500.0,0.0001944,2]
[375770626,1753738232657,-288.19334537,0.0001944,2]
[375770627,1753738232667,-500.0,0.0001944,2]
[375770628,1753738232677,-500.0,0.0001944,2]
[375770629,1753738232686,-306.17661597,0.0001944,2]
[375770630,1753738232696,-500.0,0.0001944,2]
[375770631,1753738232706,-611.86766971,0.0001944,2]
[375770632,1753738232716,-500.0,0.0001944,2]
[375770633,1753738232726,-485.06022462,0.0001944,2]
[375770634,1753738232736,-500.0,0.0001944,2]
[375770635,1753738232746,-500.0,0.0001944,2]
[375770636,1753738232756,-500.0,0.0001944,2]
[375770637,1753738232773,-500.0,0.0001944,2]
[375770638,1753738232781,-500.0,0.0001944,2]
[375770639,1753738232791,-500.0,0.0001944,2]
[375770640,1753738232801,-500.0,0.0001944,2]
[375770641,1753738232811,-500.0,0.0001944,2]
[375770642,1753738232822,-500.0,0.0001944,2]
[375770643,1753738232831,-500.0,0.0001944,2]
[375770644,1753738232841,-500.0,0.0001944,2]
[375770645,1753738232851,-223.65698868,0.0001944,2]
[375770646,1753738232861,-500.0,0.0001944,2]
[375770647,1753738232871,-500.0,0.0001944,2]
[375770648,1753738232881,-500.0,0.0001944,2]
[375770649,1753738232890,-500.0,0.0001944,2]
[375770650,1753738232900,-500.0,0.0001944,2]
[375770651,1753738232911,-500.0,0.0001944,2]
[375770652,1753738232921,-500.0,0.0001944,2]
[375770653,1753738232932,-500.0,0.0001944,2]
[375770654,1753738232943,-500.0,0.0001944,2]
[375770655,1753738232954,-500.0,0.0001944,2]
[375770656,1753738232965,-500.0,0.0001944,2]
[375770657,1753738232975,-500.0,0.0001944,2]
[375770658,1753738232984,-500.0,0.0001944,2]
[375770659,1753738232994,-500.0,0.0001944,2]
[375770660,1753738233004,-500.0,0.0001944,2]
[375770661,1753738233016,-500.0,0.0001944,2]
[375770662,1753738233027,-205.37388046,0.0001944,2]
[375770663,1753738233038,-500.0,0.0001944,2]
[375770664,1753738233049,-500.0,0.0001944,2]
[375770665,1753738233059,-500.0,0.0001944,2]
[375770666,1753738233070,-500.0,0.0001944,2]
[375770667,1753738233081,-500.0,0.0001944,2]
[375770668,1753738233092,-447.5138001,0.0001944,2]
[375770792,1753738239091,-52.4861999,0.0001944,2]
[375770793,1753738239102,-500.0,0.0001944,2]
[375770794,1753738239112,-500.0,0.0001944,2]
[375770795,1753738239122,-500.0,0.0001944,2]
[375770796,1753738239132,-500.0,0.0001944,2]
[375770797,1753738239142,-500.0,0.0001944,2]
[375770798,1753738239151,-650.0,0.0001944,2]
[375770799,1753738239161,-180.10530156,0.00019441,2]
[375770800,1753738239171,-343.1862803,0.00019441,2]
[375770801,1753738239181,-460.0,0.00019443,2]
[375770802,1753738239190,-460.0,0.00019443,2]
[375770803,1753738239200,-460.0,0.00019443,2]
[375770804,1753738239209,-460.0,0.00019443,2]
[375770805,1753738239220,-460.0,0.00019443,2]
[375770806,1753738239230,-460.0,0.00019443,2]
[375770807,1753738239240,-603.4,0.00019443,2]
[375770808,1753738239250,-460.0,0.00019443,2]
[375770809,1753738239263,-863.86,0.00019443,2]
[375770810,1753738239276,-460.0,0.00019443,2]
[375770811,1753738239287,-460.0,0.00019443,2]
[375770812,1753738239297,-1363.93,0.00019443,2]
[375770813,1753738239307,-460.0,0.00019443,2]
[375770814,1753738239318,-308.6608633,0.00019443,2]
[375770815,1753738239328,-543.33,0.00019443,2]
[375770816,1753738239338,-460.0,0.00019443,2]
[375770817,1753738239348,-460.0,0.00019443,2]
[375770818,1753738239358,-460.0,0.00019443,2]
[375770819,1753738239367,-460.0,0.00019443,2]
[375770820,1753738239377,-460.0,0.00019443,2]
[375770821,1753738239388,-460.0,0.00019443,2]
[375770822,1753738239397,-460.0,0.00019443,2]
[375770823,1753738239407,-437.54887382,0.00019445,2]
[375770824,1753738239417,-460.0,0.00019445,2]
[375770825,1753738239426,-460.0,0.00019445,2]
[375770826,1753738239437,-460.0,0.00019445,2]
[375770827,1753738239447,-460.0,0.00019445,2]
[375770828,1753738239457,-460.0,0.00019445,2]
[375770829,1753738239468,-460.0,0.00019445,2]
[375770830,1753738239478,-460.0,0.00019445,2]
[375770831,1753738239488,-510.00702442,0.00019445,2]
[375770832,1753738239497,-460.0,0.00019445,2]
[375770833,1753738239509,-460.0,0.00019445,2]
[375770834,1753738239520,-460.0,0.00019445,2]
[375770835,1753738239530,-150.20647281,0.00019445,2]
[375770836,1753738239548,-309.79352719,0.00019445,2]
[375770837,1753738239558,-460.0,0.00019445,2]
[375770838,1753738239567,-460.0,0.00019445,2]
[375770839,1753738239577,-460.0,0.00019445,2]
[375770840,1753738239588,-460.0,0.00019445,2]
[375770841,1753738239598,-460.0,0.00019445,2]
[375770842,1753738239607,-460.0,0.00019445,2]
[375770843,1753738239617,-460.0,0.00019445,2]
[375770844,1753738239627,-460.0,0.00019445,2]
[375770845,1753738239636,-460.0,0.00019445,2]
[375770846,1753738239647,-460.0,0.00019445,2]
[375770847,1753738239658,-230.13542408,0.00019445,2]
[375770848,1753738239667,-460.0,0.00019445,2]
[375770849,1753738239677,-460.0,0.00019445,2]
[375770850,1753738239686,-460.0,0.00019445,2]
[375770851,1753738239696,-460.0,0.00019445,2]
[375770852,1753738239706,-460.0,0.00019445,2]
[375770853,1753738239715,-460.0,0.00019445,2]
[375770854,1753738239725,-567.09995313,0.00019445,2]
[375770855,1753738239735,-460.0,0.00019446,2]
[375770857,1753738239746,-460.0,0.00019446,2]
[375770859,1753738239757,-460.0,0.00019447,2]
[375770862,1753738239767,-460.0,0.00019447,2]
[375770864,1753738239777,-460.0,0.00019447,2]
[375770865,1753738239788,-460.0,0.00019447,2]
[375770866,1753738239799,-460.0,0.00019447,2]
[375770867,1753738239809,-461.86207003,0.00019447,2]
[375770868,1753738239820,-460.0,0.00019447,2]
[375770869,1753738239830,-460.0,0.00019447,2]
[375770871,1753738239840,-460.0,0.00019447,2]
[375770873,1753738239849,-460.0,0.00019447,2]
[375770875,1753738239859,-460.0,0.00019447,2]
[375770877,1753738239870,-460.0,0.00019447,2]
[375770878,1753738239879,-460.0,0.00019447,2]
[375770879,1753738239889,-667.96,0.00019447,2]
[375770880,1753738239899,-460.0,0.00019448,2]
[375770881,1753738239910,-460.0,0.00019448,2]
[375770882,1753738239921,-460.0,0.00019448,2]
[375770883,1753738239931,-460.0,0.00019448,2]
[375770884,1753738239940,-460.0,0.00019449,2]
[375770885,1753738239950,-460.0,0.00019449,2]
[375770886,1753738239960,-460.0,0.00019449,2]
[375770887,1753738239969,-460.0,0.00019449,2]
[375770888,1753738239980,-460.0,0.00019449,2]
[375770889,1753738239989,-460.0,0.00019449,2]
[375770890,1753738239999,-460.0,0.00019449,2]
[375770891,1753738240008,-490.22,0.00019449,2]
[375770892,1753738240019,-460.0,0.00019449,2]
[375770893,1753738240029,-460.0,0.00019449,2]
[375770894,1753738240039,-460.0,0.0001945,2]
[375770895,1753738240049,-460.0,0.0001945,2]
[375770896,1753738240058,-460.0,0.0001945,2]
[375770897,1753738240068,-460.0,0.0001945,2]
[375770898,1753738240078,-460.0,0.0001945,2]
[375770899,1753738240088,-1936.6,0.0001945,2]
[375770900,1753738240098,-460.0,0.0001945,2]
[375770901,1753738240108,-460.0,0.0001945,2]
[375770902,1753738240118,-460.0,0.00019451,2]
[375770903,1753738240128,-460.0,0.00019451,2]
[375770904,1753738240137,-1021.62,0.00019451,2]
[375770905,1753738240147,-460.0,0.00019451,2]
[375770906,1753738240157,-460.0,0.00019714,2]
[375770907,1753738240167,-460.0,0.00019714,2]
[375770908,1753738240176,-460.0,0.00019714,2]
[375770909,1753738240186,-460.0,0.00019717,2]
[375770910,1753738240196,-460.0,0.00019717,2]
[375770911,1753738240206,-603.4,0.00019717,2]
[375770912,1753738240215,-460.0,0.00019717,2]
[375770913,1753738240226,-863.86,0.00019717,2]
[375770914,1753738240235,-460.0,0.00019717,2]
[375770915,1753738240245,-460.0,0.00019717,2]
[375770917,1753738240256,-1363.93,0.00019717,2]
[375770919,1753738240266,-460.0,0.00019717,2]
[375770921,1753738240276,-543.33,0.00019717,2]
[375770922,1753738240287,-460.0,0.00019717,2]
[375770923,1753738240296,-460.0,0.00019717,2]
[375770925,1753738240306,-460.0,0.00019717,2]
[375770927,1753738240316,-460.0,0.00019717,2]
[375770929,1753738240325,-460.0,0.00019717,2]
[375770931,1753738240335,-460.0,0.00019717,2]
[375770933,1753738240345,-460.0,0.00019719,2]
[375770935,1753738240355,-460.0,0.00019719,2]
[375770937,1753738240365,-460.0,0.00019719,2]
[375770939,1753738240374,-460.0,0.00019719,2]
[375770941,1753738240384,-460.0,0.00019719,2]
[375770943,1753738240394,-460.0,0.00019719,2]
[375770945,1753738240404,-460.0,0.00019719,2]
[375770947,1753738240414,-460.0,0.00019719,2]
[375770949,1753738240424,-460.0,0.00019719,2]
[375770951,1753738240433,-192.31603521,0.00019719,2]
[375770953,1753738240443,-460.0,0.00019719,2]
[375770956,1753738240454,-460.0,0.00019719,2]
[375770958,1753738240468,-460.0,0.00019719,2]
[375770960,1753738240481,-460.0,0.00019719,2]
[375770963,1753738240495,-460.0,0.00019719,2]
[375770965,1753738240508,-460.0,0.00019719,2]
[375770967,1753738240522,-460.0,0.00019719,2]
[375770970,1753738240535,-460.0,0.00019719,2]
[375770972,1753738240547,-460.0,0.00019719,2]
[375770974,1753738240558,-460.0,0.00019719,2]
[375770976,1753738240570,-460.0,0.00019719,2]
[375770978,1753738240581,-460.0,0.0001972,2]
[375770981,1753738240595,-460.0,0.00019721,2]
[375770983,1753738240606,-460.0,0.00019721,2]
[375770985,1753738240618,-460.0,0.00019721,2]
[375770987,1753738240630,-460.0,0.00019721,2]
[375770990,1753738240643,-460.0,0.00019721,2]
[375770992,1753738240654,-460.0,0.00019721,2]
[375770994,1753738240667,-667.96,0.00019721,2]
[375770996,1753738240679,-460.0,0.00019723,2]
[375770999,1753738240691,-460.0,0.00019723,2]
[375771001,1753738240703,-460.0,0.00019723,2]
[375771003,1753738240715,-460.0,0.00019723,2]
[375771005,1753738240727,-460.0,0.00019723,2]
[375771008,1753738240740,-460.0,0.00019723,2]
[375771010,1753738240755,-460.0,0.00019723,2]
[375771012,1753738240767,-460.0,0.00019724,2]
[375771014,1753738240779,-460.0,0.00019724,2]
[375771016,1753738240792,-460.0,0.00019724,2]
[375771018,1753738240804,-1936.6,0.00019724,2]
[375771021,1753738240816,-460.0,0.00019724,2]
[375771023,1753738240829,-733.33,0.00019725,2]
[375771025,1753738240840,-460.0,0.00019725,2]
[375771027,1753738240851,-460.0,0.00019725,2]
[375771029,1753738240862,-1021.62,0.00019725,2]
[375771032,1753738240874,-460.0,0.00019725,2]
[375771034,1753738240886,-200.0,0.00019828,15]
[375771036,1753738240898,-200.0,0.00019828,15]
[375771038,1753738240909,-200.0,0.00019828,15]
[375771041,1753738240922,-200.0,0.00019828,15]
[375771043,1753738240932,-347.01,0.00019988,3]
[375771045,1753738240944,-173.5,0.00019988,3]
[375771047,1753738240954,-460.0,0.00019988,2]
[375771049,1753738240964,-460.0,0.00019988,2]
[375771051,1753738240975,-460.0,0.00019988,2]
[375771053,1753738240986,-460.0,0.00019991,2]
[375771056,1753738240998,-603.4,0.00019991,2]
[375771058,1753738241009,-460.0,0.00019991,2]
[375771060,1753738241020,-863.86,0.00019991,2]
[375771062,1753738241030,-460.0,0.00019991,2]
[375771064,1753738241043,-460.0,0.00019991,2]
[375771067,1753738241055,-1363.93,0.00019991,2]
[375771069,1753738241067,-460.0,0.00019991,2]
[375771071,1753738241079,-543.33,0.00019991,2]
[375771073,1753738241090,-460.0,0.00019991,2]
[375771075,1753738241102,-460.0,0.00019991,2]
[375771078,1753738241114,-460.0,0.00019991,2]
[375771080,1753738241125,-460.0,0.00019991,2]
[375771082,1753738241138,-460.0,0.00019991,2]
[375771084,1753738241150,-460.0,0.00019991,2]
[375771087,1753738241163,-460.0,0.00019993,2]
[375771089,1753738241174,-460.0,0.00019993,2]
[375771091,1753738241186,-460.0,0.00019993,2]
[375771093,1753738241198,-460.0,0.00019993,2]
[375771096,1753738241212,-460.0,0.00019993,2]
[375771098,1753738241223,-460.0,0.00019993,2]
[375771100,1753738241235,-460.0,0.00019993,2]
[375771102,1753738241245,-460.0,0.00019993,2]
[375771104,1753738241255,-460.0,0.00019993,2]
[375771106,1753738241266,-460.0,0.00019993,2]
[375771108,1753738241276,-460.0,0.00019993,2]
[375771110,1753738241287,-460.0,0.00019993,2]
[375771112,1753738241297,-460.0,0.00019993,2]
[375771114,1753738241309,-460.0,0.00019993,2]
[375771117,1753738241321,-460.0,0.00019993,2]
[375771119,1753738241332,-460.0,0.00019993,2]
[375771121,1753738241345,-460.0,0.00019993,2]
[375771124,1753738241358,-460.0,0.00019993,2]
[375771126,1753738241369,-536.92,0.00019994,2]
[375771128,1753738241380,-460.0,0.00019995,2]
[375771130,1753738241391,-460.0,0.00019995,2]
[375771132,1753738241400,-460.0,0.00019995,2]
[375771134,1753738241410,-460.0,0.00019995,2]
[375771136,1753738241422,-299.72,0.00019995,2]
[375771138,1753738241433,-460.0,0.00019995,2]
[375771140,1753738241444,-667.96,0.00019995,2]
[375771143,1753738241457,-241.05363665,0.00019997,2]
[375771145,1753738241468,-460.0,0.00019997,2]
[375771147,1753738241481,-460.0,0.00019997,2]
[375771149,1753738241492,-460.0,0.00019997,2]
[375771151,1753738241503,-460.0,0.00019997,2]
[375771153,1753738241513,-460.0,0.00019997,2]
[375771156,1753738241524,-460.0,0.00019998,2]
[375771158,1753738241535,-1936.6,0.00019998,2]
[375771160,1753738241545,-460.0,0.00019998,2]
[375771162,1753738241555,-733.33,0.00019999,2]
[375771164,1753738241566,-460.0,0.00019999,2]
[375771166,1753738241578,-460.0,0.00019999,2]
[375771168,1753738241589,-1021.62,0.00019999,2]
[375771170,1753738241600,-460.0,0.00019999,2]
[375771173,1753738241611,-500.0,0.00020121,2]
[375771175,1753738241622,-321.315379,0.00020187,2]
[375771177,1753738241633,-460.0,0.00020262,2]
[375771179,1753738241643,-460.0,0.00020262,2]
[375771181,1753738241654,-460.0,0.00020262,2]
[375771183,1753738241665,-603.4,0.00020265,2]
[375771185,1753738241675,-460.0,0.00020265,2]
[375771187,1753738241686,-511.37,0.00020265,2]
[375771190,1753738241696,-460.0,0.00020265,2]
[375771192,1753738241709,-1363.93,0.00020265,2]
[375771194,1753738241720,-460.0,0.00020265,2]
[375771196,1753738241731,-543.33,0.00020265,2]
[375771198,1753738241744,-460.0,0.00020265,2]
[375771200,1753738241755,-460.0,0.00020265,2]
[375771202,1753738241767,-460.0,0.00020265,2]
[375771204,1753738241779,-460.0,0.00020265,2]
[375771207,1753738241790,-460.0,0.00020265,2]
[375771209,1753738241801,-460.0,0.00020267,2]
[375771211,1753738241812,-460.0,0.00020267,2]
[375771213,1753738241824,-460.0,0.00020267,2]
[375771215,1753738241835,-460.0,0.00020267,2]
[375771217,1753738241847,-460.0,0.00020267,2]
[375771219,1753738241858,-460.0,0.00020267,2]
[375771221,1753738241869,-460.0,0.00020267,2]
[375771223,1753738241880,-460.0,0.00020267,2]
[375771226,1753738241892,-468.86442385,0.00020267,2]
[375771228,1753738241903,-460.0,0.00020267,2]
[375771230,1753738241914,-460.0,0.00020267,2]
[375771232,1753738241925,-460.0,0.00020267,2]
[375771234,1753738241936,-460.0,0.00020267,2]
[375771236,1753738241947,-460.0,0.00020267,2]
[375771238,1753738241957,-460.0,0.00020269,2]
[375771240,1753738241968,-460.0,0.00020269,2]
[375771242,1753738241979,-460.0,0.00020269,2]
[375771245,1753738241990,-196.00371425,0.00020269,2]
[375771247,1753738242000,-460.0,0.00020269,2]
[375771249,1753738242011,-667.96,0.00020269,2]
[375771251,1753738242025,-230.2,0.00020271,2]
[375771253,1753738242036,-460.0,0.00020271,2]
[375771255,1753738242047,-460.0,0.00020271,2]
[375771257,1753738242058,-460.0,0.00020271,2]
[375771260,1753738242069,-460.0,0.00020272,2]
[375771262,1753738242081,-1936.6,0.00020272,2]
[375771264,1753738242092,-460.0,0.00020272,2]